[Event "Chessable Masters - Torneo preliminare"]
[White "Lobanov, Sergei"]
[Black "Anton Guijarro, David"]
[WhiteFideId "24183750"]
[BlackFideId "2285525"]
[WhiteElo "2436"]
[BlackElo "2635"]
[Result "0-1"]
[Round "6"]
[TimeControl "600+2"]
[Date "2023.03.13"]
[WhiteClock "0:01:07"]
[BlackClock "0:05:19"]

1. d4 {[%clk 0:10:01]}  Nf6 {[%clk 0:09:59]} 2. c4 {[%clk 0:10:03]}  e6 {[%clk 0:10:00]} 3. Nc3 {[%clk 0:10:04]}  Bb4 {[%clk 0:09:59]} 4. e3 {[%clk 0:10:05]}  O-O {[%clk 0:09:49]} 5. Bd3 {[%clk 0:10:05]}  c5 {[%clk 0:09:50]} 6. Ne2 {[%clk 0:10:04]}  cxd4 {[%clk 0:09:47]} 7. exd4 {[%clk 0:10:01]}  d5 {[%clk 0:09:47]} 8. cxd5 {[%clk 0:09:56]}  Nxd5 {[%clk 0:09:47]} 9. O-O {[%clk 0:09:46]}  Nc6 {[%clk 0:09:45]} 10. Nxd5 {[%clk 0:08:48]}  exd5 {[%clk 0:09:10]} 11. Nf4 {[%clk 0:07:43]}  Re8 {[%clk 0:09:00]} 12. Qh5 {[%clk 0:06:41]}  g6 {[%clk 0:08:42]} 13. Qxd5 {[%clk 0:05:10]}  Bd6 {[%clk 0:08:33]} 14. Qc4 {[%clk 0:03:45]}  Qf6 {[%clk 0:07:34]} 15. Nd5 {[%clk 0:03:23]}  Qh4 {[%clk 0:07:26]} 16. g3 {[%clk 0:03:20]}  Qd8 {[%clk 0:07:23]} 17. Bf4 {[%clk 0:02:43]}  Bxf4 {[%clk 0:06:36]} 18. Nxf4 {[%clk 0:02:43]}  Nxd4 {[%clk 0:06:06]} 19. Nd5 {[%clk 0:01:05]}  Nf3+ {[%clk 0:05:27]} 20. Kg2 {[%clk 0:01:07]}  Be6 {[%clk 0:05:19]} 0-1


[Site "Internet"]

[Event "Chessable Masters - Torneo preliminare"]
[White "Kravtsiv, Martyn"]
[Black "Aditya, Mittal"]
[WhiteFideId "14113147"]
[BlackFideId "35042025"]
[WhiteElo "2675"]
[BlackElo "2386"]
[Result "1-0"]
[Round "6"]
[TimeControl "600+2"]
[Date "2023.03.13"]
[WhiteClock "0:00:19"]
[BlackClock "0:00:03"]

1. e4 {[%clk 0:10:01]}  e5 {[%clk 0:10:01]} 2. Nf3 {[%clk 0:10:01]}  Nc6 {[%clk 0:10:02]} 3. Nc3 {[%clk 0:10:01]}  Nf6 {[%clk 0:10:03]} 4. a4 {[%clk 0:10:01]}  Bb4 {[%clk 0:09:34]} 5. Bd3 {[%clk 0:10:00]}  d6 {[%clk 0:09:26]} 6. O-O {[%clk 0:08:40]}  a6 {[%clk 0:09:20]} 7. Ne2 {[%clk 0:07:42]}  d5 {[%clk 0:08:54]} 8. Ng3 {[%clk 0:07:24]}  O-O {[%clk 0:08:52]} 9. Qe2 {[%clk 0:07:12]}  Re8 {[%clk 0:08:38]} 10. c3 {[%clk 0:07:13]}  Bf8 {[%clk 0:08:38]} 11. Bc2 {[%clk 0:07:08]}  dxe4 {[%clk 0:07:49]} 12. Nxe4 {[%clk 0:07:08]}  Bf5 {[%clk 0:07:51]} 13. d3 {[%clk 0:06:59]}  h6 {[%clk 0:07:33]} 14. Re1 {[%clk 0:06:56]}  Nxe4 {[%clk 0:07:25]} 15. dxe4 {[%clk 0:06:56]}  Be6 {[%clk 0:07:26]} 16. Be3 {[%clk 0:06:52]}  Qf6 {[%clk 0:07:16]} 17. Nd2 {[%clk 0:06:34]}  Red8 {[%clk 0:06:33]} 18. a5 {[%clk 0:06:17]}  g5 {[%clk 0:06:21]} 19. Nb3 {[%clk 0:06:02]}  Rd7 {[%clk 0:05:53]} 20. Nc5 {[%clk 0:05:06]}  Bxc5 {[%clk 0:05:52]} 21. Bxc5 {[%clk 0:05:08]}  Rad8 {[%clk 0:05:50]} 22. Be3 {[%clk 0:05:09]}  Ne7 {[%clk 0:05:42]} 23. Red1 {[%clk 0:05:01]}  Ng6 {[%clk 0:05:38]} 24. Rxd7 {[%clk 0:04:17]}  Rxd7 {[%clk 0:05:40]} 25. Rd1 {[%clk 0:04:16]}  Nf4 {[%clk 0:05:30]} 26. Qf1 {[%clk 0:04:09]}  Kg7 {[%clk 0:04:54]} 27. Rxd7 {[%clk 0:03:53]}  Bxd7 {[%clk 0:04:54]} 28. Qd1 {[%clk 0:03:54]}  Bb5 {[%clk 0:04:36]} 29. Bb3 {[%clk 0:03:34]}  Qc6 {[%clk 0:04:17]} 30. Bxf4 {[%clk 0:03:24]}  gxf4 {[%clk 0:03:52]} 31. Bd5 {[%clk 0:02:11]}  Qd7 {[%clk 0:03:25]} 32. Qh5 {[%clk 0:02:02]}  f6 {[%clk 0:02:43]} 33. h3 {[%clk 0:01:59]}  Bc6 {[%clk 0:02:38]} 34. Qg4+ {[%clk 0:00:27]}  Qxg4 {[%clk 0:01:58]} 35. hxg4 {[%clk 0:00:29]}  Kg6 {[%clk 0:00:20]} 36. b4 {[%clk 0:00:23]}  Bxd5 {[%clk 0:00:15]} 37. exd5 {[%clk 0:00:24]}  f5 {[%clk 0:00:14]} 38. c4 {[%clk 0:00:19]}  fxg4 {[%clk 0:00:07]} 39. b5 {[%clk 0:00:20]}  Kf6 {[%clk 0:00:05]} 40. c5 {[%clk 0:00:17]}  axb5 {[%clk 0:00:04]} 41. c6 {[%clk 0:00:15]}  bxc6 {[%clk 0:00:05]} 42. a6 {[%clk 0:00:17]}  cxd5 {[%clk 0:00:03]} 43. a7 {[%clk 0:00:18]}  d4 {[%clk 0:00:03]} 44. a8=Q {[%clk 0:00:19]} 1-0


[Site "Internet"]

[Event "Chessable Masters - Torneo preliminare"]
[White "Alekseenko, Kirill"]
[Black "Preotu, Razvan"]
[WhiteFideId "4135539"]
[BlackFideId "2613280"]
[WhiteElo "2632"]
[BlackElo "2532"]
[Result "1-0"]
[Round "6"]
[TimeControl "600+2"]
[Date "2023.03.13"]
[WhiteClock "0:00:28"]
[BlackClock "0:00:04"]

1. e4 {[%clk 0:09:45]}  e6 {[%clk 0:09:53]} 2. d4 {[%clk 0:09:04]}  d5 {[%clk 0:09:54]} 3. Nd2 {[%clk 0:09:04]}  c5 {[%clk 0:09:53]} 4. exd5 {[%clk 0:08:47]}  Qxd5 {[%clk 0:09:53]} 5. dxc5 {[%clk 0:08:21]}  Qxc5 {[%clk 0:09:52]} 6. Ngf3 {[%clk 0:08:21]}  Nf6 {[%clk 0:09:53]} 7. Bd3 {[%clk 0:08:22]}  Nbd7 {[%clk 0:09:48]} 8. O-O {[%clk 0:08:19]}  Qc7 {[%clk 0:09:44]} 9. a4 {[%clk 0:08:11]}  b6 {[%clk 0:09:02]} 10. a5 {[%clk 0:08:04]}  bxa5 {[%clk 0:08:18]} 11. Nb3 {[%clk 0:07:55]}  Rb8 {[%clk 0:07:51]} 12. Nxa5 {[%clk 0:07:35]}  Nc5 {[%clk 0:07:30]} 13. Be2 {[%clk 0:07:13]}  Nce4 {[%clk 0:07:08]} 14. c3 {[%clk 0:06:49]}  Be7 {[%clk 0:05:14]} 15. Nd4 {[%clk 0:06:49]}  Bd7 {[%clk 0:05:07]} 16. Re1 {[%clk 0:06:17]}  Bd6 {[%clk 0:04:14]} 17. g3 {[%clk 0:06:02]}  e5 {[%clk 0:03:42]} 18. Bf3 {[%clk 0:05:13]}  exd4 {[%clk 0:03:40]} 19. Bxe4 {[%clk 0:05:13]}  O-O {[%clk 0:03:42]} 20. Bg2 {[%clk 0:05:06]}  dxc3 {[%clk 0:03:11]} 21. bxc3 {[%clk 0:05:08]}  Rb5 {[%clk 0:01:34]} 22. Nc4 {[%clk 0:04:49]}  Qxc4 {[%clk 0:01:03]} 23. Qxd6 {[%clk 0:04:48]}  Qxc3 {[%clk 0:01:04]} 24. Ba3 {[%clk 0:04:47]}  Rfb8 {[%clk 0:00:50]} 25. Rac1 {[%clk 0:04:37]}  Qa5 {[%clk 0:00:44]} 26. h3 {[%clk 0:02:46]}  h6 {[%clk 0:00:39]} 27. Kh2 {[%clk 0:02:41]}  R8b6 {[%clk 0:00:39]} 28. Qf8+ {[%clk 0:02:36]}  Kh7 {[%clk 0:00:40]} 29. Be7 {[%clk 0:02:22]}  Rf5 {[%clk 0:00:24]} 30. Bc5 {[%clk 0:01:32]}  Re6 {[%clk 0:00:20]} 31. Rxe6 {[%clk 0:01:17]}  Bxe6 {[%clk 0:00:22]} 32. Be3 {[%clk 0:01:19]}  Bd5 {[%clk 0:00:15]} 33. Rc5 {[%clk 0:01:13]}  Qa2 {[%clk 0:00:17]} 34. Qd6 {[%clk 0:00:43]}  Ne4 {[%clk 0:00:14]} 35. Qxd5 {[%clk 0:00:26]}  Rxd5 {[%clk 0:00:07]} 36. Bxe4+ {[%clk 0:00:28]}  f5 {[%clk 0:00:04]} 37. Bxd5 {[%clk 0:00:28]}  Qa3 {[%clk 0:00:03]} 38. Be6 {[%clk 0:00:27]}  g6 {[%clk 0:00:04]} 39. Rc7+ {[%clk 0:00:28]} 1-0


[Site "Internet"]

[Event "Chessable Masters - Torneo preliminare"]
[White "Paravyan, David"]
[Black "Fier, Alexandr"]
[WhiteFideId "4194985"]
[BlackFideId "2107139"]
[WhiteElo "2598"]
[BlackElo "2504"]
[Result "0-1"]
[Round "6"]
[TimeControl "600+2"]
[Date "2023.03.13"]
[WhiteClock "0:00:03"]
[BlackClock "0:03:04"]

1. e4 {[%clk 0:10:01]}  c6 {[%clk 0:10:00]} 2. d4 {[%clk 0:10:02]}  d5 {[%clk 0:10:01]} 3. e5 {[%clk 0:10:04]}  c5 {[%clk 0:10:01]} 4. Nf3 {[%clk 0:10:05]}  cxd4 {[%clk 0:10:01]} 5. Nxd4 {[%clk 0:10:07]}  Nc6 {[%clk 0:10:01]} 6. Nxc6 {[%clk 0:10:08]}  bxc6 {[%clk 0:10:02]} 7. Bd3 {[%clk 0:10:09]}  e6 {[%clk 0:09:59]} 8. O-O {[%clk 0:10:10]}  Ne7 {[%clk 0:10:00]} 9. Nd2 {[%clk 0:10:11]}  Ng6 {[%clk 0:10:01]} 10. Nf3 {[%clk 0:10:12]}  Be7 {[%clk 0:09:59]} 11. Re1 {[%clk 0:09:43]}  a5 {[%clk 0:09:59]} 12. Nd4 {[%clk 0:08:12]}  Qc7 {[%clk 0:09:48]} 13. Qh5 {[%clk 0:08:09]}  O-O {[%clk 0:09:20]} 14. Re3 {[%clk 0:07:56]}  h6 {[%clk 0:08:38]} 15. Bxg6 {[%clk 0:07:15]}  fxg6 {[%clk 0:08:37]} 16. Qxg6 {[%clk 0:07:17]}  Bc5 {[%clk 0:08:22]} 17. c3 {[%clk 0:06:38]}  Qf7 {[%clk 0:08:16]} 18. Qxf7+ {[%clk 0:06:35]}  Rxf7 {[%clk 0:08:16]} 19. Rg3 {[%clk 0:06:36]}  Kh7 {[%clk 0:08:03]} 20. Be3 {[%clk 0:06:30]}  Bxd4 {[%clk 0:07:58]} 21. cxd4 {[%clk 0:06:18]}  Rb7 {[%clk 0:07:56]} 22. Rb1 {[%clk 0:06:01]}  Rab8 {[%clk 0:07:48]} 23. b3 {[%clk 0:05:55]}  a4 {[%clk 0:07:45]} 24. Bd2 {[%clk 0:05:54]}  axb3 {[%clk 0:07:44]} 25. Rgxb3 {[%clk 0:05:54]}  Rxb3 {[%clk 0:07:44]} 26. axb3 {[%clk 0:05:27]}  Ra8 {[%clk 0:07:37]} 27. f3 {[%clk 0:05:23]}  Ra2 {[%clk 0:07:37]} 28. Be3 {[%clk 0:05:24]}  Ba6 {[%clk 0:07:34]} 29. h3 {[%clk 0:05:14]}  h5 {[%clk 0:07:30]} 30. h4 {[%clk 0:05:05]}  Kg6 {[%clk 0:07:31]} 31. Kh2 {[%clk 0:03:54]}  Kf5 {[%clk 0:07:30]} 32. Kg3 {[%clk 0:03:54]}  Bb5 {[%clk 0:07:31]} 33. Rc1 {[%clk 0:03:30]}  Re2 {[%clk 0:07:03]} 34. Bg5 {[%clk 0:03:21]}  Ra2 {[%clk 0:07:04]} 35. Be7 {[%clk 0:03:18]}  Kg6 {[%clk 0:06:54]} 36. Bg5 {[%clk 0:03:12]}  Kf5 {[%clk 0:06:55]} 37. Be3 {[%clk 0:03:11]}  Re2 {[%clk 0:06:55]} 38. Bg1 {[%clk 0:03:12]}  Ra2 {[%clk 0:06:55]} 39. Bf2 {[%clk 0:03:13]}  Kg6 {[%clk 0:06:54]} 40. Be3 {[%clk 0:03:00]}  Kf5 {[%clk 0:06:56]} 41. Bg5 {[%clk 0:02:59]}  Kg6 {[%clk 0:06:56]} 42. Kh3 {[%clk 0:02:43]}  Rf2 {[%clk 0:06:19]} 43. Ra1 {[%clk 0:02:22]}  Bf1 {[%clk 0:06:13]} 44. Kg3 {[%clk 0:02:23]}  Rxg2+ {[%clk 0:06:13]} 45. Kf4 {[%clk 0:02:25]}  Bd3 {[%clk 0:06:01]} 46. Ra7 {[%clk 0:02:19]}  Rc2 {[%clk 0:05:57]} 47. Be7 {[%clk 0:02:16]}  Kh7 {[%clk 0:05:36]} 48. Bf6 {[%clk 0:01:50]}  Rg2 {[%clk 0:05:36]} 49. Rc7 {[%clk 0:01:49]}  Kg8 {[%clk 0:05:27]} 50. Bd8 {[%clk 0:01:29]}  Rc2 {[%clk 0:05:23]} 51. Kg5 {[%clk 0:01:24]}  Rg2+ {[%clk 0:05:24]} 52. Kf4 {[%clk 0:01:25]}  Rc2 {[%clk 0:05:25]} 53. Be7 {[%clk 0:01:23]}  Rc3 {[%clk 0:05:09]} 54. Kg5 {[%clk 0:01:19]}  Ba6 {[%clk 0:04:49]} 55. Ra7 {[%clk 0:00:41]}  Rxf3 {[%clk 0:03:11]} 56. Ra8+ {[%clk 0:00:07]}  Kh7 {[%clk 0:03:11]} 57. Rf8 {[%clk 0:00:09]}  Rg3+ {[%clk 0:03:04]} 58. Kf4 {[%clk 0:00:10]}  Rg4+ {[%clk 0:03:02]} 59. Ke3 {[%clk 0:00:11]}  Re4+ {[%clk 0:03:03]} 60. Kf2 {[%clk 0:00:12]}  Rxd4 {[%clk 0:03:04]} 61. Bd6 {[%clk 0:00:04]}  Rd2+ {[%clk 0:03:02]} 62. Ke3 {[%clk 0:00:04]}  Rd3+ {[%clk 0:03:03]} 63. Kf4 {[%clk 0:00:05]}  Rxb3 {[%clk 0:03:01]} 64. Re8 {[%clk 0:00:05]}  Be2 {[%clk 0:03:00]} 65. Rxe6 {[%clk 0:00:02]}  Bg4 {[%clk 0:03:01]} 66. Re7 {[%clk 0:00:02]}  Rf3+ {[%clk 0:03:02]} 67. Kg5 {[%clk 0:00:03]}  Rf5# {[%clk 0:03:04]} 0-1


[Site "Internet"]

[Event "Chessable Masters - Torneo preliminare"]
[White "Mareco, Sandro"]
[Black "Kosteniuk, Alexandra"]
[WhiteFideId "112275"]
[BlackFideId "4128125"]
[WhiteElo "2541"]
[BlackElo "2524"]
[Result "0-1"]
[Round "6"]
[TimeControl "600+2"]
[Date "2023.03.13"]
[WhiteClock "0:05:40"]
[BlackClock "0:03:24"]

1. d4 {[%clk 0:10:01]}  Nf6 {[%clk 0:10:00]} 2. c4 {[%clk 0:10:03]}  e6 {[%clk 0:10:01]} 3. Nf3 {[%clk 0:10:04]}  d5 {[%clk 0:10:02]} 4. g3 {[%clk 0:10:05]}  dxc4 {[%clk 0:10:02]} 5. Bg2 {[%clk 0:10:06]}  Nc6 {[%clk 0:10:04]} 6. O-O {[%clk 0:10:07]}  Rb8 {[%clk 0:10:02]} 7. Re1 {[%clk 0:09:42]}  Be7 {[%clk 0:09:59]} 8. e4 {[%clk 0:09:42]}  O-O {[%clk 0:09:57]} 9. Nc3 {[%clk 0:09:43]}  b5 {[%clk 0:09:46]} 10. a3 {[%clk 0:09:44]}  Na5 {[%clk 0:09:37]} 11. Be3 {[%clk 0:09:41]}  Nb3 {[%clk 0:09:35]} 12. Rb1 {[%clk 0:09:42]}  Bb7 {[%clk 0:09:27]} 13. Ne5 {[%clk 0:09:30]}  a6 {[%clk 0:09:18]} 14. d5 {[%clk 0:09:29]}  Bc5 {[%clk 0:08:39]} 15. a4 {[%clk 0:09:16]}  Bxe3 {[%clk 0:08:26]} 16. Rxe3 {[%clk 0:09:16]}  b4 {[%clk 0:07:25]} 17. Na2 {[%clk 0:09:08]}  exd5 {[%clk 0:07:18]} 18. Nxb4 {[%clk 0:09:08]}  Qd6 {[%clk 0:07:03]} 19. Nec6 {[%clk 0:08:02]}  Bxc6 {[%clk 0:06:50]} 20. Nxa6 {[%clk 0:08:03]}  Rb6 {[%clk 0:05:57]} 21. e5 {[%clk 0:08:03]}  Qd7 {[%clk 0:05:54]} 22. exf6 {[%clk 0:07:56]}  Rxa6 {[%clk 0:05:52]} 23. Qh5 {[%clk 0:07:44]}  Bxa4 {[%clk 0:05:30]} 24. Re7 {[%clk 0:06:17]}  Qd6 {[%clk 0:05:22]} 25. Bxd5 {[%clk 0:06:17]}  Qxf6 {[%clk 0:05:17]} 26. Rbe1 {[%clk 0:06:18]}  g6 {[%clk 0:04:32]} 27. Qe2 {[%clk 0:06:14]}  Nd4 {[%clk 0:04:29]} 28. Qxc4 {[%clk 0:06:14]}  Bb3 {[%clk 0:03:41]} 29. Rxf7 {[%clk 0:05:39]}  Rxf7 {[%clk 0:03:30]} 30. Bxf7+ {[%clk 0:05:40]}  Kg7 {[%clk 0:03:24]} 0-1


[Site "Internet"]

[Event "Chessable Masters - Torneo preliminare"]
[White "Petrov, Nikita"]
[Black "Bachmann, Axel"]
[WhiteFideId "4101286"]
[BlackFideId "3700488"]
[WhiteElo "2514"]
[BlackElo "2618"]
[Result "1/2-1/2"]
[Round "6"]
[TimeControl "600+2"]
[Date "2023.03.13"]
[WhiteClock "0:00:17"]
[BlackClock "0:00:12"]

1. d4 {[%clk 0:10:01]}  Nf6 {[%clk 0:09:57]} 2. Bg5 {[%clk 0:10:02]}  d5 {[%clk 0:09:55]} 3. e3 {[%clk 0:10:03]}  c5 {[%clk 0:09:51]} 4. c3 {[%clk 0:10:03]}  Ne4 {[%clk 0:09:42]} 5. Bf4 {[%clk 0:10:02]}  Nc6 {[%clk 0:09:43]} 6. Bd3 {[%clk 0:09:52]}  Nf6 {[%clk 0:09:12]} 7. Nd2 {[%clk 0:09:37]}  Qb6 {[%clk 0:08:46]} 8. Rb1 {[%clk 0:09:26]}  Bg4 {[%clk 0:08:32]} 9. Ngf3 {[%clk 0:09:19]}  e6 {[%clk 0:08:27]} 10. Qa4 {[%clk 0:09:20]}  cxd4 {[%clk 0:08:12]} 11. exd4 {[%clk 0:09:14]}  Be7 {[%clk 0:07:14]} 12. Ne5 {[%clk 0:08:44]}  Bh5 {[%clk 0:07:14]} 13. O-O {[%clk 0:08:09]}  O-O {[%clk 0:07:14]} 14. Rfe1 {[%clk 0:08:09]}  Nxe5 {[%clk 0:05:37]} 15. Bxe5 {[%clk 0:07:40]}  Rfc8 {[%clk 0:05:17]} 16. h3 {[%clk 0:07:32]}  Bg6 {[%clk 0:05:13]} 17. Bxg6 {[%clk 0:07:30]}  hxg6 {[%clk 0:05:15]} 18. Qd1 {[%clk 0:06:21]}  Qc6 {[%clk 0:05:12]} 19. Bxf6 {[%clk 0:05:59]}  gxf6 {[%clk 0:05:09]} 20. Nf1 {[%clk 0:05:52]}  b5 {[%clk 0:05:05]} 21. Ne3 {[%clk 0:04:56]}  f5 {[%clk 0:04:58]} 22. Nf1 {[%clk 0:04:37]}  b4 {[%clk 0:04:52]} 23. cxb4 {[%clk 0:04:38]}  Bxb4 {[%clk 0:04:50]} 24. Re2 {[%clk 0:04:39]}  Rab8 {[%clk 0:04:32]} 25. Nh2 {[%clk 0:04:38]}  Qa6 {[%clk 0:03:37]} 26. a3 {[%clk 0:04:03]}  Be7 {[%clk 0:03:07]} 27. Nf3 {[%clk 0:04:03]}  Bf6 {[%clk 0:03:08]} 28. Rc2 {[%clk 0:03:34]}  Rxc2 {[%clk 0:03:02]} 29. Qxc2 {[%clk 0:03:36]}  Rc8 {[%clk 0:03:04]} 30. Qd2 {[%clk 0:03:36]}  Qc4 {[%clk 0:02:40]} 31. Re1 {[%clk 0:03:15]}  Qb3 {[%clk 0:01:56]} 32. Rc1 {[%clk 0:02:55]}  Rc4 {[%clk 0:01:40]} 33. Rxc4 {[%clk 0:01:46]}  dxc4 {[%clk 0:01:42]} 34. Qc3 {[%clk 0:01:47]}  Qd1+ {[%clk 0:01:25]} 35. Kh2 {[%clk 0:01:46]}  Qe2 {[%clk 0:01:26]} 36. Kg1 {[%clk 0:01:38]}  Qd1+ {[%clk 0:00:40]} 37. Kh2 {[%clk 0:01:38]}  Qe2 {[%clk 0:00:35]} 38. Kg1 {[%clk 0:01:39]}  g5 {[%clk 0:00:35]} 39. Ne5 {[%clk 0:01:30]}  Kg7 {[%clk 0:00:19]} 40. Qxc4 {[%clk 0:00:52]}  Qxc4 {[%clk 0:00:04]} 41. Nxc4 {[%clk 0:00:53]}  Bxd4 {[%clk 0:00:06]} 42. b4 {[%clk 0:00:51]}  Kf6 {[%clk 0:00:06]} 43. a4 {[%clk 0:00:48]}  e5 {[%clk 0:00:08]} 44. g4 {[%clk 0:00:23]}  fxg4 {[%clk 0:00:05]} 45. hxg4 {[%clk 0:00:25]}  Ke6 {[%clk 0:00:07]} 46. b5 {[%clk 0:00:12]}  Kd5 {[%clk 0:00:08]} 47. Na5 {[%clk 0:00:13]}  Bb6 {[%clk 0:00:03]} 48. Nc6 {[%clk 0:00:14]}  a5 {[%clk 0:00:04]} 49. Kf1 {[%clk 0:00:09]}  f6 {[%clk 0:00:05]} 50. Ke2 {[%clk 0:00:09]}  Kc4 {[%clk 0:00:07]} 51. Ne7 {[%clk 0:00:10]}  Kb3 {[%clk 0:00:08]} 52. Nd5 {[%clk 0:00:11]}  Bc5 {[%clk 0:00:09]} 53. b6 {[%clk 0:00:13]}  Kxa4 {[%clk 0:00:11]} 54. b7 {[%clk 0:00:14]}  Bd6 {[%clk 0:00:13]} 55. Nxf6 {[%clk 0:00:10]}  Kb3 {[%clk 0:00:14]} 56. Ne4 {[%clk 0:00:11]}  Bc7 {[%clk 0:00:16]} 57. Nc5+ {[%clk 0:00:12]}  Kc4 {[%clk 0:00:15]} 58. Na6 {[%clk 0:00:13]}  Bd6 {[%clk 0:00:17]} 59. Kd2 {[%clk 0:00:13]}  a4 {[%clk 0:00:17]} 60. Kc2 {[%clk 0:00:13]}  Kd4 {[%clk 0:00:19]} 61. b8=Q {[%clk 0:00:13]}  Bxb8 {[%clk 0:00:19]} 62. Nxb8 {[%clk 0:00:15]}  e4 {[%clk 0:00:20]} 63. Nc6+ {[%clk 0:00:15]}  Kd5 {[%clk 0:00:20]} 64. Ne7+ {[%clk 0:00:12]}  Ke5 {[%clk 0:00:21]} 65. Ng6+ {[%clk 0:00:13]}  Kd4 {[%clk 0:00:23]} 66. Nf8 {[%clk 0:00:13]}  Ke5 {[%clk 0:00:23]} 67. Ng6+ {[%clk 0:00:13]}  Kf6 {[%clk 0:00:23]} 68. Nf8 {[%clk 0:00:14]}  Ke7 {[%clk 0:00:17]} 69. Ng6+ {[%clk 0:00:15]}  Kf6 {[%clk 0:00:12]} 70. Nf8 {[%clk 0:00:16]}  Ke5 {[%clk 0:00:12]} 71. Ng6+ {[%clk 0:00:17]} 1/2-1/2


[Site "Internet"]

[Event "Chessable Masters - Torneo preliminare"]
[White "Yu, Yangyi"]
[Black "Cardoso Cardoso, Jose Gabriel"]
[WhiteFideId "8603820"]
[BlackFideId "4430492"]
[WhiteElo "2734"]
[BlackElo "2425"]
[Result "1-0"]
[Round "6"]
[TimeControl "600+2"]
[Date "2023.03.13"]
[WhiteClock "0:07:09"]
[BlackClock "0:03:37"]

1. e4 {[%clk 0:09:47]}  c5 {[%clk 0:09:59]} 2. Nf3 {[%clk 0:09:47]}  d6 {[%clk 0:10:00]} 3. d4 {[%clk 0:09:47]}  cxd4 {[%clk 0:10:01]} 4. Nxd4 {[%clk 0:09:49]}  Nf6 {[%clk 0:10:02]} 5. Nc3 {[%clk 0:09:51]}  a6 {[%clk 0:10:03]} 6. a4 {[%clk 0:09:52]}  e5 {[%clk 0:09:54]} 7. Nf3 {[%clk 0:09:51]}  Be7 {[%clk 0:09:55]} 8. Bc4 {[%clk 0:09:51]}  O-O {[%clk 0:09:10]} 9. O-O {[%clk 0:09:52]}  Be6 {[%clk 0:09:08]} 10. Qe2 {[%clk 0:09:52]}  Qc7 {[%clk 0:08:34]} 11. Bb3 {[%clk 0:09:53]}  Rc8 {[%clk 0:08:29]} 12. Rd1 {[%clk 0:09:53]}  Nbd7 {[%clk 0:08:25]} 13. Bg5 {[%clk 0:09:50]}  Bc4 {[%clk 0:08:01]} 14. Qe1 {[%clk 0:09:19]}  h6 {[%clk 0:07:52]} 15. Bxf6 {[%clk 0:09:16]}  Nxf6 {[%clk 0:07:51]} 16. Nd2 {[%clk 0:09:17]}  Be6 {[%clk 0:07:44]} 17. Nf1 {[%clk 0:09:10]}  Qc5 {[%clk 0:07:17]} 18. Ne3 {[%clk 0:09:05]}  b5 {[%clk 0:07:11]} 19. Ncd5 {[%clk 0:08:58]}  Nxd5 {[%clk 0:06:47]} 20. Nxd5 {[%clk 0:08:37]}  Bd8 {[%clk 0:06:45]} 21. Qe2 {[%clk 0:08:30]}  g6 {[%clk 0:06:21]} 22. h3 {[%clk 0:08:12]}  Kg7 {[%clk 0:06:18]} 23. Rd3 {[%clk 0:08:13]}  Ra7 {[%clk 0:05:58]} 24. Rc3 {[%clk 0:08:02]}  Qd4 {[%clk 0:05:47]} 25. Rd1 {[%clk 0:07:43]}  Rxc3 {[%clk 0:04:10]} 26. Rxd4 {[%clk 0:07:43]}  Rxb3 {[%clk 0:04:09]} 27. cxb3 {[%clk 0:07:44]}  exd4 {[%clk 0:04:10]} 28. Qd3 {[%clk 0:07:45]}  Rb7 {[%clk 0:03:49]} 29. Qxd4+ {[%clk 0:07:45]}  Kg8 {[%clk 0:03:50]} 30. Nf4 {[%clk 0:07:25]}  Be7 {[%clk 0:03:36]} 31. Nxe6 {[%clk 0:07:15]}  fxe6 {[%clk 0:03:37]} 32. Qc3 {[%clk 0:07:09]} 1-0


[Site "Internet"]

[Event "Chessable Masters - Torneo preliminare"]
[White "Vallejo Pons, Francisco"]
[Black "Sarana, Alexey"]
[WhiteFideId "2205530"]
[BlackFideId "24133795"]
[WhiteElo "2662"]
[BlackElo "2643"]
[Result "1/2-1/2"]
[Round "6"]
[TimeControl "600+2"]
[Date "2023.03.13"]
[WhiteClock "0:01:25"]
[BlackClock "0:07:24"]

1. e4 {[%clk 0:10:01]}  c5 {[%clk 0:09:59]} 2. b3 {[%clk 0:10:00]}  Nf6 {[%clk 0:09:59]} 3. e5 {[%clk 0:09:59]}  Nd5 {[%clk 0:10:01]} 4. Nc3 {[%clk 0:10:00]}  Nxc3 {[%clk 0:10:01]} 5. dxc3 {[%clk 0:10:02]}  Nc6 {[%clk 0:10:02]} 6. Nf3 {[%clk 0:09:45]}  Qc7 {[%clk 0:10:03]} 7. Bf4 {[%clk 0:09:17]}  f6 {[%clk 0:10:02]} 8. Bg3 {[%clk 0:08:04]}  fxe5 {[%clk 0:09:47]} 9. Nxe5 {[%clk 0:08:00]}  Nxe5 {[%clk 0:09:49]} 10. Qh5+ {[%clk 0:07:59]}  g6 {[%clk 0:09:50]} 11. Qxe5 {[%clk 0:07:59]}  Qxe5+ {[%clk 0:09:52]} 12. Bxe5 {[%clk 0:08:00]}  Rg8 {[%clk 0:09:54]} 13. Bc4 {[%clk 0:06:50]}  e6 {[%clk 0:09:54]} 14. O-O-O {[%clk 0:06:44]}  d5 {[%clk 0:09:50]} 15. Be2 {[%clk 0:05:55]}  Bd7 {[%clk 0:09:48]} 16. Rhe1 {[%clk 0:05:35]}  Kf7 {[%clk 0:09:48]} 17. Rd3 {[%clk 0:04:38]}  Bg7 {[%clk 0:09:41]} 18. Bg4 {[%clk 0:04:12]}  Rge8 {[%clk 0:09:34]} 19. Rf3+ {[%clk 0:03:31]}  Kg8 {[%clk 0:09:35]} 20. Rfe3 {[%clk 0:03:23]}  Bxe5 {[%clk 0:09:33]} 21. Rxe5 {[%clk 0:03:24]}  Kf7 {[%clk 0:09:35]} 22. f4 {[%clk 0:03:18]}  Rad8 {[%clk 0:09:33]} 23. g3 {[%clk 0:03:17]}  Bc8 {[%clk 0:09:34]} 24. h4 {[%clk 0:03:16]}  h5 {[%clk 0:09:34]} 25. Bh3 {[%clk 0:03:15]}  Rd6 {[%clk 0:09:33]} 26. a4 {[%clk 0:03:15]}  Red8 {[%clk 0:09:33]} 27. Kd2 {[%clk 0:03:14]}  a5 {[%clk 0:09:26]} 28. Bf1 {[%clk 0:03:13]}  Kg7 {[%clk 0:09:13]} 29. Rg5 {[%clk 0:03:10]}  Rf8 {[%clk 0:09:11]} 30. Bd3 {[%clk 0:03:07]}  Rf6 {[%clk 0:09:12]} 31. Rg1 {[%clk 0:02:53]}  Kf7 {[%clk 0:09:03]} 32. Ke3 {[%clk 0:02:49]}  d4+ {[%clk 0:07:56]} 33. cxd4 {[%clk 0:02:40]}  cxd4+ {[%clk 0:07:58]} 34. Kd2 {[%clk 0:02:37]}  Rf5 {[%clk 0:07:58]} 35. g4 {[%clk 0:01:59]}  Rxg5 {[%clk 0:07:56]} 36. hxg5 {[%clk 0:01:57]}  hxg4 {[%clk 0:07:51]} 37. Rxg4 {[%clk 0:01:58]}  Bd7 {[%clk 0:07:51]} 38. Rh4 {[%clk 0:01:54]}  Kg7 {[%clk 0:07:52]} 39. Rh1 {[%clk 0:01:31]}  Bc6 {[%clk 0:07:48]} 40. Re1 {[%clk 0:01:24]}  b6 {[%clk 0:07:31]} 41. Re2 {[%clk 0:01:21]}  Kf7 {[%clk 0:07:30]} 42. Rh2 {[%clk 0:01:22]}  Kg7 {[%clk 0:07:31]} 43. Rh6 {[%clk 0:01:23]}  Be8 {[%clk 0:07:32]} 44. Rh2 {[%clk 0:01:23]}  Bc6 {[%clk 0:07:22]} 45. Rh6 {[%clk 0:01:24]}  Be8 {[%clk 0:07:23]} 46. Rh2 {[%clk 0:01:25]}  Bc6 {[%clk 0:07:24]} 1/2-1/2


[Site "Internet"]